fUSD/lending_fUSD_20260611
["ID","MTS","AMOUNT","RATE_DAILY","PERIOD"]
[424756941,1781129444000,-500.0,0.00014999,2]
[424756942,1781129444000,-500.0,0.00014999,2]
[424756947,1781129444000,-500.0,0.00014999,2]
[424756946,1781129444000,-500.0,0.00014999,2]
[424756948,1781129444000,-500.0,0.00014999,2]
[424756950,1781129444000,-500.0,0.00014999,2]
[424756949,1781129444000,-500.0,0.00014999,2]
[424756951,1781129444000,-500.0,0.00014999,2]
[424756952,1781129444000,-500.0,0.00014999,2]
[424756897,1781129444000,-500.0,0.00014999,2]
[424756931,1781129444000,-500.0,0.00014999,2]
[424756928,1781129444000,-500.0,0.00014999,2]
[424756953,1781129444000,-500.0,0.00014999,2]
[424756924,1781129444000,-500.0,0.00014999,2]
[424756895,1781129444000,-500.0,0.00014999,2]
[424756900,1781129444000,-500.0,0.00014999,2]
[424756903,1781129444000,-500.0,0.00014999,2]
[424756902,1781129444000,-500.0,0.00014999,2]
[424756904,1781129444000,-500.0,0.00014999,2]
[424756906,1781129444000,-500.0,0.00014999,2]
[424756905,1781129444000,-500.0,0.00014999,2]
[424756925,1781129444000,-500.0,0.00014999,2]
[424756911,1781129444000,-500.0,0.00014999,2]
[424756908,1781129444000,-500.0,0.00014999,2]
[424756907,1781129444000,-500.0,0.00014999,2]
[424756909,1781129444000,-500.0,0.00014999,2]
[424756910,1781129444000,-500.0,0.00014999,2]
[424756915,1781129444000,-2000.0,0.00014999,2]
[424756922,1781129444000,-500.0,0.00014999,2]
[424756913,1781129444000,-250.0,0.00014999,2]
[424756923,1781129444000,-500.0,0.00014999,2]
[424756933,1781129444000,-500.0,0.00014999,2]
[424756921,1781129444000,-500.0,0.00014999,2]
[424756919,1781129444000,-500.0,0.00014999,2]
[424756917,1781129444000,-500.0,0.00014999,2]
[424756916,1781129444000,-500.0,0.00014999,2]
[424756918,1781129444000,-500.0,0.00014999,2]
[424756914,1781129444000,-500.0,0.00014999,2]
[424756912,1781129444000,-500.0,0.00014999,2]
[424756920,1781129444000,-500.0,0.00014999,2]
[424756981,1781129445000,-500.0,0.00014999,2]
[424756993,1781129445000,-923.19,0.00014999,2]
[424756989,1781129445000,-500.0,0.00014999,2]
[424756982,1781129445000,-500.0,0.00014999,2]
[424756990,1781129445000,-500.0,0.00014999,2]
[424756987,1781129445000,-500.0,0.00014999,2]
[424756988,1781129445000,-500.0,0.00014999,2]
[424756983,1781129445000,-500.0,0.00014999,2]
[424756985,1781129445000,-434.86714671,0.00014999,2]
[424756986,1781129445000,-500.0,0.00014999,2]
[424756992,1781129445000,-356.71071378,0.00014999,2]
[424757012,1781129445000,-320.0,0.00015,2]
[424756995,1781129445000,-923.19,0.00014999,2]
[424756999,1781129445000,-923.19,0.00014999,2]
[424756997,1781129445000,-923.19,0.00014999,2]
[424756998,1781129445000,-923.19,0.00014999,2]
[424757000,1781129445000,-923.19,0.00014999,2]
[424756996,1781129445000,-923.19,0.00014999,2]
[424757001,1781129445000,-923.19,0.00014999,2]
[424757002,1781129445000,-300.0,0.00014999,2]
[424757003,1781129445000,-300.0,0.00014999,2]
[424757006,1781129445000,-300.0,0.00014999,2]
[424756991,1781129445000,-500.0,0.00014999,2]
[424756994,1781129445000,-923.19,0.00014999,2]
[424756984,1781129445000,-500.0,0.00014999,2]
[424756958,1781129445000,-500.0,0.00014999,2]
[424756973,1781129445000,-500.0,0.00014999,2]
[424757011,1781129445000,-255.79451904,0.00015,2]
[424756956,1781129445000,-500.0,0.00014999,2]
[424756955,1781129445000,-500.0,0.00014999,2]
[424756959,1781129445000,-500.0,0.00014999,2]
[424756957,1781129445000,-500.0,0.00014999,2]
[424756963,1781129445000,-500.0,0.00014999,2]
[424756962,1781129445000,-500.0,0.00014999,2]
[424756960,1781129445000,-500.0,0.00014999,2]
[424756961,1781129445000,-500.0,0.00014999,2]
[424756964,1781129445000,-500.0,0.00014999,2]
[424756965,1781129445000,-500.0,0.00014999,2]
[424756976,1781129445000,-500.0,0.00014999,2]
[424756967,1781129445000,-500.0,0.00014999,2]
[424756968,1781129445000,-500.0,0.00014999,2]
[424756970,1781129445000,-500.0,0.00014999,2]
[424756971,1781129445000,-500.0,0.00014999,2]
[424756978,1781129445000,-500.0,0.00014999,2]
[424756975,1781129445000,-500.0,0.00014999,2]
[424756974,1781129445000,-500.0,0.00014999,2]
[424756969,1781129445000,-500.0,0.00014999,2]
[424756979,1781129445000,-500.0,0.00014999,2]
[424756980,1781129445000,-500.0,0.00014999,2]
[424756972,1781129445000,-500.0,0.00014999,2]
[424756977,1781129445000,-500.0,0.00014999,2]
[424756966,1781129445000,-500.0,0.00014999,2]
[424757005,1781129445000,-300.0,0.00014999,2]
[424756954,1781129445000,-500.0,0.00014999,2]
[424757007,1781129445000,-300.0,0.00014999,2]
[424757041,1781129445000,-1687.39,0.00015,2]
[424757040,1781129445000,-812.33,0.00015,2]
[424757043,1781129445000,-151.0,0.00015,2]
[424757042,1781129445000,-200.0,0.00015,2]
[424757045,1781129445000,-151.0,0.00015,2]
[424757046,1781129445000,-1776.86,0.00015,2]
[424757044,1781129445000,-151.0,0.00015,2]
[424757049,1781129445000,-2476.53,0.00015,2]
[424757057,1781129445000,-243.571754,0.00015,2]
[424757058,1781129445000,-243.571754,0.00015,2]
[424757051,1781129445000,-619.13,0.00015,2]
[424757039,1781129445000,-2000.0,0.00015,2]
[424757048,1781129445000,-444.22,0.00015,2]
[424757052,1781129445000,-151.0,0.00015,2]
[424757053,1781129445000,-151.0,0.00015,2]
[424757056,1781129445000,-243.571754,0.00015,2]
[424757055,1781129445000,-243.571754,0.00015,2]
[424757054,1781129445000,-737.39387,0.00015,2]
[424757059,1781129445000,-243.571754,0.00015,2]
[424757062,1781129445000,-243.571754,0.00015,2]
[424757065,1781129445000,-175.58311357,0.00015,2]
[424757063,1781129445000,-1000.0,0.00015,2]
[424757061,1781129445000,-243.571754,0.00015,2]
[424757064,1781129445000,-344.8962505,0.00015,2]
[424757050,1781129445000,-1031.89,0.00015,2]
[424757038,1781129445000,-749.59,0.00015,2]
[424757060,1781129445000,-243.571754,0.00015,2]
[424757047,1781129445000,-740.36,0.00015,2]
[424757037,1781129445000,-2000.0,0.00015,2]
[424757004,1781129445000,-666.0,0.00014999,2]
[424757009,1781129445000,-300.0,0.00014999,2]
[424757010,1781129445000,-918661.32689794,0.00015,2]
[424757013,1781129445000,-4554.45220822,0.00015,2]
[424757016,1781129445000,-2043769.70168203,0.00015,2]
[424757020,1781129445000,-1600.0,0.00015,2]
[424757014,1781129445000,-217.34,0.00015,2]
[424757022,1781129445000,-1500.0,0.00015,2]
[424757015,1781129445000,-150.0,0.00015,2]
[424757018,1781129445000,-2000.0,0.00015,2]
[424757023,1781129445000,-900.0,0.00015,2]
[424757008,1781129445000,-666.0,0.00014999,2]
[424757025,1781129445000,-6630886.00599235,0.00015,2]
[424757024,1781129445000,-200.0,0.00015,2]
[424757034,1781129445000,-450.0,0.00015,2]
[424757032,1781129445000,-1800.0,0.00015,2]
[424757033,1781129445000,-750.0,0.00015,2]
[424757030,1781129445000,-1000.0,0.00015,2]
[424757028,1781129445000,-2000.0,0.00015,2]
[424757027,1781129445000,-151.0,0.00015,2]
[424757036,1781129445000,-2000.0,0.00015,2]
[424757029,1781129445000,-400.0,0.00015,2]
[424757035,1781129445000,-2000.0,0.00015,2]
[424757026,1781129445000,-151.0,0.00015,2]
[424757031,1781129445000,-600.0,0.00015,2]
[424757096,1781129446000,-350.0,0.00015467,2]
[424757099,1781129446000,-320.0,0.000155,2]
[424757097,1781129446000,-10000.0,0.00015491,2]
[424757093,1781129446000,-200.0,0.00015455,2]
[424757100,1781129446000,-4554.45220822,0.000155,2]
[424757102,1781129446000,-320.0,0.000156,2]
[424757101,1781129446000,-10000.0,0.00015554,2]
[424757103,1781129446000,-4554.45220822,0.000156,2]
[424757094,1781129446000,-200.0,0.00015455,2]
[424757105,1781129446000,-200.0,0.00015609,2]
[424757115,1781129446000,-919.43198827,0.00015863,2]
[424757107,1781129446000,-866.75,0.00015704,2]
[424757109,1781129446000,-1734.62772924,0.0001576,2]
[424757110,1781129446000,-1262.19175548,0.00015786,2]
[424757111,1781129446000,-350.0,0.00015797,2]
[424757104,1781129446000,-737.39388,0.000156,2]
[424757106,1781129446000,-200.0,0.00015609,2]
[424757112,1781129446000,-4554.45220822,0.000158,2]
[424757113,1781129446000,-737.39387,0.000158,2]
[424757117,1781129446000,-919.43198827,0.00015878,2]
[424757130,1781129446000,-919.43198827,0.00015966,2]
[424757132,1781129446000,-737.39388,0.00016,2]
[424757135,1781129446000,-919.43198827,0.00016028,2]
[424757108,1781129446000,-238.69,0.00015745,2]
[424757092,1781129446000,-736.0,0.00015413,2]
[424757090,1781129446000,-737.39388,0.000154,2]
[424757087,1781129446000,-8066.58700158,0.00015305,2]
[424757133,1781129446000,-300.0,0.00016,2]
[424757068,1781129446000,-350.0,0.00015003,2]
[424757067,1781129446000,-151.0,0.00015,2]
[424757066,1781129446000,-151.0,0.00015,2]
[424757069,1781129446000,-350.0,0.00015014,3]
[424757070,1781129446000,-203.014014,0.00015106,2]
[424757073,1781129446000,-200.0,0.0001515,2]
[424757071,1781129446000,-6111.0,0.0001511,2]
[424757079,1781129446000,-4554.45220822,0.000152,2]
[424757072,1781129446000,-200.0,0.0001515,2]
[424757080,1781129446000,-737.39388,0.000152,2]
[424757074,1781129446000,-300.0,0.00015165,2]
[424757076,1781129446000,-666.0,0.00015165,2]
[424757078,1781129446000,-320.0,0.000152,2]
[424757077,1781129446000,-15000.0,0.00015166,2]
[424757081,1781129446000,-1672.7364795,0.00015212,2]
[424757083,1781129446000,-320.0,0.000153,2]
[424757084,1781129446000,-4554.45220822,0.000153,2]
[424757086,1781129446000,-200.0,0.00015301,2]
[424757089,1781129446000,-775.88990299,0.00015386,2]
[424757085,1781129446000,-200.0,0.00015301,2]
[424757088,1781129446000,-6111.0,0.00015365,2]
[424757082,1781129446000,-15000.0,0.00015272,2]
[424757091,1781129446000,-350.0,0.00015411,2]
[424757075,1781129446000,-300.0,0.00015165,2]
[424757134,1781129446000,-191.7390802,0.00016,2]
[424757122,1781129446000,-4554.45220822,0.000159,2]
[424757158,1781129446000,-919.43198827,0.00016311,2]
[424757164,1781129446000,-4554.45220822,0.000164,2]
[424757160,1781129446000,-919.43198827,0.00016357,2]
[424757165,1781129446000,-919.43198827,0.00016429,2]
[424757163,1781129446000,-752.94,0.00016381,2]
[424757168,1781129446000,-160.25280756,0.00016438,2]
[424757166,1781129446000,-416.8,0.00016438,2]
[424757167,1781129446000,-282.502183,0.00016438,2]
[424757170,1781129446000,-151.0,0.00016438,2]
[424757169,1781129446000,-151.0,0.00016438,2]
[424757176,1781129446000,-151.0,0.00016438,2]
[424757162,1781129446000,-919.43198827,0.00016371,2]
[424757174,1781129446000,-151.0,0.00016438,2]
[424757173,1781129446000,-151.0,0.00016438,2]
[424757178,1781129446000,-240.0,0.00016438,2]
[424757175,1781129446000,-151.0,0.00016438,2]
[424757177,1781129446000,-151.0,0.00016438,2]
[424757179,1781129446000,-919.43198827,0.00016471,2]
[424757181,1781129446000,-350.0,0.000165,2]
[424757180,1781129446000,-919.43198827,0.00016478,2]
[424757182,1781129446000,-6075.0,0.00016527,2]
[424757184,1781129446000,-3661.361,0.00016527,2]
[424757183,1781129446000,-1214.0,0.00016527,2]
[424757119,1781129446000,-919.43198827,0.00015893,2]
[424757172,1781129446000,-151.0,0.00016438,2]
[424757161,1781129446000,-919.43198827,0.00016363,2]
[424757171,1781129446000,-151.0,0.00016438,2]
[424757154,1781129446000,-350.0,0.00016257,3]
[424757126,1781129446000,-919.43198827,0.00015925,2]
[424757159,1781129446000,-919.43198827,0.00016316,2]
[424757128,1781129446000,-775.88990299,0.00015959,2]
[424757124,1781129446000,-150.0,0.000159,2]
[424757136,1781129446000,-168.6138294,0.00016059,2]
[424757139,1781129446000,-4554.45220822,0.000161,2]
[424757138,1781129446000,-919.43198827,0.00016078,2]
[424757147,1781129446000,-4554.45220822,0.000162,2]
[424757140,1781129446000,-919.43198827,0.00016106,2]
[424757141,1781129446000,-980.82664043,0.0001611,15]
[424757143,1781129446000,-919.43198827,0.00016133,2]
[424757145,1781129446000,-10578.68411827,0.00016162,2]
[424757137,1781129446000,-919.43198827,0.00016068,2]
[424757144,1781129446000,-919.43198827,0.00016143,2]
[424757157,1781129446000,-1798.80895522,0.00016308,2]
[424757146,1781129446000,-919.43198827,0.00016179,2]
[424757156,1781129446000,-919.43198827,0.00016303,2]
[424757150,1781129446000,-1563.43,0.00016221,2]
[424757152,1781129446000,-919.43198827,0.00016249,2]
[424757151,1781129446000,-282.53942145,0.00016238,2]
[424757153,1781129446000,-919.43198827,0.00016254,2]
[424757155,1781129446000,-919.43198827,0.0001627,2]
[424757149,1781129446000,-919.43198827,0.00016211,2]
[424757142,1781129446000,-919.43198827,0.00016132,2]
[424757148,1781129446000,-919.43198827,0.00016201,2]
[424757224,1781129447000,-166.08642978,0.000184,2]
[424757214,1781129447000,-167.69105665,0.00017952,2]
[424757215,1781129447000,-2005.9555727,0.00017952,2]
[424757219,1781129447000,-350.0,0.00018,2]
[424757217,1781129447000,-7872.34457716,0.00018,2]
[424757216,1781129447000,-166.08642978,0.00018,2]
[424757223,1781129447000,-2129.0,0.00018344,2]
[424757220,1781129447000,-683.0,0.00018,2]
[424757218,1781129447000,-227.45964902,0.00018,2]
[424757222,1781129447000,-166.08642978,0.000182,2]
[424757221,1781129447000,-752.94,0.0001802,2]
[424757227,1781129447000,-300.0,0.00018499,2]
[424757244,1781129447000,-1280.88388877,0.000185,2]
[424757232,1781129447000,-1030.0,0.000185,2]
[424757225,1781129447000,-416.8,0.0001841,2]
[424757233,1781129447000,-1068.11,0.000185,2]
[424757231,1781129447000,-153.0765,0.000185,2]
[424757226,1781129447000,-168.6138294,0.00018442,2]
[424757230,1781129447000,-154.15483266,0.000185,2]
[424757229,1781129447000,-217.34,0.000185,2]
[424757234,1781129447000,-693.39197629,0.000185,2]
[424757236,1781129447000,-174.61919141,0.000185,2]
[424757242,1781129447000,-1235.18214925,0.000185,2]
[424757209,1781129447000,-866.75,0.00017131,2]
[424757228,1781129447000,-300.0,0.00018499,2]
[424757212,1781129447000,-179.9,0.00017258,2]
[424757185,1781129447000,-176.72864824,0.00016532,2]
[424757213,1781129447000,-1934.38338736,0.00017404,2]
[424757245,1781129447000,-261.51085406,0.000185,2]
[424757188,1781129447000,-919.43198827,0.00016586,2]
[424757190,1781129447000,-217.34,0.000166,2]
[424757189,1781129447000,-919.43198827,0.00016588,2]
[424757186,1781129447000,-919.43198827,0.00016532,2]
[424757187,1781129447000,-919.43198827,0.00016579,2]
[424757193,1781129447000,-919.43198827,0.00016791,2]
[424757191,1781129447000,-308.79649143,0.00016635,2]
[424757195,1781129447000,-1252.0,0.00016814,2]
[424757197,1781129447000,-1865.36488656,0.00016856,2]
[424757192,1781129447000,-919.43198827,0.00016668,2]
[424757194,1781129447000,-919.43198827,0.00016813,2]
[424757198,1781129447000,-919.43198827,0.00016862,2]
[424757196,1781129447000,-919.43198827,0.00016836,2]
[424757199,1781129447000,-300.0,0.00016984,2]
[424757200,1781129447000,-372.91906083,0.00016984,2]
[424757201,1781129447000,-300.0,0.00016984,2]
[424757202,1781129447000,-300.0,0.00016984,2]
[424757203,1781129447000,-150.0,0.00016985,2]
[424757204,1781129447000,-150.0,0.00016985,2]
[424757206,1781129447000,-1274.0,0.00016985,2]
[424757205,1781129447000,-3556.0,0.00016985,2]
[424757208,1781129447000,-1227.0,0.00016985,2]
[424757207,1781129447000,-382.0,0.00016985,2]
[424757211,1781129447000,-168.6138294,0.00017251,2]
[424757210,1781129447000,-238.69,0.00017177,2]
[424757243,1781129447000,-151.0,0.000185,2]
[424757273,1781129447000,-151.0,0.000185,2]
[424757246,1781129447000,-151.0,0.000185,2]
[424757271,1781129447000,-151.0,0.000185,2]
[424757272,1781129447000,-1776.30922209,0.000185,2]
[424757280,1781129447000,-209.40437684,0.000185,2]
[424757275,1781129447000,-151.0,0.000185,2]
[424757279,1781129447000,-1910.18787185,0.000185,2]
[424757294,1781129447000,-151.0,0.000185,2]
[424757274,1781129447000,-500.0,0.000185,2]
[424757277,1781129447000,-1842.0326633,0.000185,2]
[424757276,1781129447000,-151.0,0.000185,2]
[424757281,1781129447000,-151.0,0.000185,2]
[424757278,1781129447000,-151.0,0.000185,2]
[424757283,1781129447000,-1980.8648231,0.000185,2]
[424757282,1781129447000,-151.0,0.000185,2]
[424757284,1781129447000,-151.0,0.000185,2]
[424757285,1781129447000,-151.0,0.000185,2]
[424757287,1781129447000,-2054.15682156,0.000185,2]
[424757286,1781129447000,-500.0,0.000185,2]
[424757288,1781129447000,-151.0,0.000185,2]
[424757289,1781129447000,-151.0,0.000185,2]
[424757291,1781129447000,-500.0,0.000185,2]
[424757290,1781129447000,-151.0,0.000185,2]
[424757293,1781129447000,-151.0,0.000185,2]
[424757296,1781129447000,-500.0,0.000185,2]
[424757295,1781129447000,-151.0,0.000185,2]
[424757235,1781129447000,-1107.63007,0.000185,2]
[424757269,1781129447000,-151.0,0.000185,2]
[424757266,1781129447000,-151.0,0.000185,2]
[424757292,1781129447000,-2080.17592889,0.000185,2]
[424757267,1781129447000,-1712.93078311,0.000185,2]
[424757265,1781129447000,-151.0,0.000185,2]
[424757238,1781129447000,-209.40437684,0.000185,2]
[424757237,1781129447000,-151.0,0.000185,2]
[424757240,1781129447000,-151.0,0.000185,2]
[424757241,1781129447000,-1191.11104074,0.000185,2]
[424757249,1781129447000,-151.0,0.000185,2]
[424757253,1781129447000,-151.0,0.000185,2]
[424757251,1781129447000,-1428.38747117,0.000185,2]
[424757250,1781129447000,-1377.42282658,0.000185,2]
[424757247,1781129447000,-578.20924308,0.000185,2]
[424757252,1781129447000,-151.0,0.000185,2]
[424757248,1781129447000,-1328.27659266,0.000185,2]
[424757239,1781129447000,-1148.61238259,0.000185,2]
[424757257,1781129447000,-1592.87721992,0.000185,2]
[424757254,1781129447000,-1481.2378076,0.000185,2]
[424757263,1781129447000,-721.12765534,0.000185,2]
[424757262,1781129447000,-151.0,0.000185,2]
[424757261,1781129447000,-151.0,0.000185,2]
[424757259,1781129447000,-318.7019707,0.000185,2]
[424757268,1781129447000,-500.0,0.000185,2]
[424757270,1781129447000,-151.0,0.000185,2]
[424757258,1781129447000,-151.0,0.000185,2]
[424757255,1781129447000,-151.0,0.000185,2]
[424757256,1781129447000,-1536.04360648,0.000185,2]
[424757260,1781129447000,-209.40437684,0.000185,2]
[424757264,1781129447000,-1651.81367706,0.000185,2]
[424757322,1781129448000,-500.0,0.000185,2]
[424757319,1781129448000,-500.0,0.000185,2]
[424757331,1781129448000,-151.0,0.00018555,2]
[424757324,1781129448000,-152.0,0.000185,2]
[424757321,1781129448000,-152.0,0.000185,2]
[424757327,1781129448000,-152.0,0.000185,2]
[424757326,1781129448000,-152.0,0.000185,2]
[424757328,1781129448000,-152.0,0.000185,2]
[424757330,1781129448000,-719.04747942,0.00018555,2]
[424757329,1781129448000,-152.0,0.000185,2]
[424757338,1781129448000,-52868.9439957,0.0001862,2]
[424757333,1781129448000,-151.0,0.0001861,2]
[424757336,1781129448000,-300.0,0.00018619,2]
[424757334,1781129448000,-300.0,0.00018619,2]
[424757335,1781129448000,-300.0,0.00018619,2]
[424757337,1781129448000,-398435.1788815,0.0001862,2]
[424757341,1781129448000,-773.24136889,0.00018665,2]
[424757339,1781129448000,-302.26302387,0.00018624,2]
[424757340,1781129448000,-683.0,0.00018626,2]
[424757323,1781129448000,-151.0,0.000185,2]
[424757344,1781129448000,-801.85129954,0.0001872,2]
[424757332,1781129448000,-745.65223615,0.0001861,2]
[424757316,1781129448000,-151.0,0.000185,2]
[424757306,1781129448000,-151.0,0.000185,2]
[424757318,1781129448000,-152.0,0.000185,2]
[424757343,1781129448000,-1262.19175548,0.00018667,2]
[424757298,1781129448000,-151.0,0.000185,2]
[424757297,1781129448000,-152.0,0.000185,2]
[424757303,1781129448000,-151.0,0.000185,2]
[424757302,1781129448000,-151.0,0.000185,2]
[424757300,1781129448000,-500.0,0.000185,2]
[424757299,1781129448000,-151.0,0.000185,2]
[424757301,1781129448000,-151.0,0.000185,2]
[424757305,1781129448000,-500.0,0.000185,2]
[424757313,1781129448000,-151.0,0.000185,2]
[424757304,1781129448000,-152.0,0.000185,2]
[424757307,1781129448000,-151.0,0.000185,2]
[424757308,1781129448000,-151.0,0.000185,2]
[424757310,1781129448000,-500.0,0.000185,2]
[424757311,1781129448000,-151.0,0.000185,2]
[424757309,1781129448000,-152.0,0.000185,2]
[424757312,1781129448000,-151.0,0.000185,2]
[424757315,1781129448000,-500.0,0.000185,2]
[424757314,1781129448000,-152.0,0.000185,2]
[424757325,1781129448000,-151.0,0.000185,2]
[424757317,1781129448000,-151.0,0.000185,2]
[424757320,1781129448000,-151.0,0.000185,2]
[424757342,1781129448000,-151.0,0.00018665,2]
[424757349,1781129448000,-151.0,0.0001883,2]
[424757346,1781129448000,-831.51979762,0.00018775,2]
[424757373,1781129448000,-997.16350561,0.0001905,2]
[424757375,1781129448000,-188.60089299,0.00019071,2]
[424757376,1781129448000,-350.0,0.00019107,3]
[424757374,1781129448000,-151.0,0.0001905,2]
[424757377,1781129448000,-160.93281423,0.00019178,2]
[424757378,1781129448000,-683.0,0.00019253,3]
[424757380,1781129448000,-1140.0,0.00019452,2]
[424757381,1781129448000,-153.84502015,0.0001949,2]
[424757379,1781129448000,-1125.0,0.00019263,2]
[424757387,1781129448000,-243.571754,0.000195,2]
[424757372,1781129448000,-2157.14243826,0.00019048,2]
[424757382,1781129448000,-300.0,0.00019499,2]
[424757390,1781129448000,-217.410644,0.000195,2]
[424757384,1781129448000,-82067.52041668,0.000195,2]
[424757386,1781129448000,-243.571754,0.000195,2]
[424757388,1781129448000,-243.571754,0.000195,2]
[424757385,1781129448000,-225.4639,0.000195,2]
[424757389,1781129448000,-243.571754,0.000195,2]
[424757392,1781129448000,-1214.0,0.00019527,2]
[424757391,1781129448000,-6075.0,0.00019527,2]
[424757393,1781129448000,-3643.0,0.00019527,2]
[424757345,1781129448000,-151.0,0.0001872,2]
[424757383,1781129448000,-300.0,0.00019499,2]
[424757371,1781129448000,-217.15233878,0.00019048,2]
[424757394,1781129448000,-187.78006524,0.00019596,2]
[424757368,1781129448000,-217.15233878,0.00019048,2]
[424757370,1781129448000,-151.0,0.00019048,2]
[424757350,1781129448000,-894.19061325,0.00018885,2]
[424757351,1781129448000,-151.0,0.00018885,2]
[424757348,1781129448000,-862.28603014,0.0001883,2]
[424757357,1781129448000,-151.0,0.00018995,2]
[424757355,1781129448000,-151.0,0.0001894,2]
[424757352,1781129448000,-3300.0,0.000189,6]
[424757356,1781129448000,-961.58486558,0.00018995,2]
[424757354,1781129448000,-927.27566594,0.0001894,2]
[424757353,1781129448000,-1000.0,0.000189,6]
[424757347,1781129448000,-151.0,0.00018775,2]
[424757358,1781129448000,-300.0,0.00018999,2]
[424757361,1781129448000,-181.70535338,0.00019,2]
[424757362,1781129448000,-3124.97495216,0.00019,2]
[424757360,1781129448000,-150.0,0.00019,2]
[424757367,1781129448000,-181.08010149,0.00019048,2]
[424757363,1781129448000,-814.06941199,0.00019,2]
[424757364,1781129448000,-288.0,0.00019,2]
[424757366,1781129448000,-274469.88356788,0.00019,2]
[424757365,1781129448000,-671.0,0.00019,2]
[424757369,1781129448000,-151.0,0.00019048,2]
[424757359,1781129448000,-300.0,0.00018999,2]
[424757425,1781129449000,-500.0,0.00019999,2]
[424757427,1781129449000,-500.0,0.00019999,2]
[424757430,1781129449000,-450.0,0.00019999,2]
[424757423,1781129449000,-500.0,0.00019999,2]
[424757426,1781129449000,-500.0,0.00019999,2]
[424757429,1781129449000,-500.0,0.00019999,2]
[424757428,1781129449000,-384.91991522,0.00019999,2]
[424757421,1781129449000,-500.0,0.00019999,2]
[424757424,1781129449000,-502.94828666,0.00019999,2]
[424757431,1781129449000,-500.0,0.00019999,2]
[424757435,1781129449000,-500.0,0.00019999,2]
[424757422,1781129449000,-500.0,0.00019999,2]
[424757444,1781129449000,-500.0,0.00019999,2]
[424757434,1781129449000,-500.0,0.00019999,2]
[424757433,1781129449000,-500.0,0.00019999,2]
[424757438,1781129449000,-500.0,0.00019999,2]
[424757439,1781129449000,-500.0,0.00019999,2]
[424757437,1781129449000,-583.26762464,0.00019999,2]
[424757436,1781129449000,-500.0,0.00019999,2]
[424757417,1781129449000,-500.0,0.00019999,2]
[424757441,1781129449000,-500.0,0.00019999,2]
[424757432,1781129449000,-500.0,0.00019999,2]
[424757418,1781129449000,-500.0,0.00019999,2]
[424757402,1781129449000,-683.0,0.00019879,3]
[424757415,1781129449000,-500.0,0.00019999,2]
[424757443,1781129449000,-500.0,0.00019999,2]
[424757395,1781129449000,-225.18697532,0.00019596,2]
[424757396,1781129449000,-151.0,0.00019596,2]
[424757397,1781129449000,-151.0,0.00019596,2]
[424757398,1781129449000,-225.18697532,0.00019596,2]
[424757400,1781129449000,-168.61382943,0.00019633,2]
[424757410,1781129449000,-2000.0,0.00019993,7]
[424757399,1781129449000,-2236.95670847,0.00019596,2]
[424757404,1781129449000,-150.0,0.00019985,2]